fUST/lending_fUST_20250510
["ID","MTS","AMOUNT","RATE_DAILY","PERIOD"]
[360534421,1746853841069,-507.11820651,0.00010673,2]
[360534423,1746853841079,-501.07497557,0.00010673,2]
[360534425,1746853841088,-502.59050536,0.00010673,2]
[360534427,1746853841100,-501.97282584,0.00010673,2]
[360534428,1746853841108,-500.0,0.00010673,2]
[360534430,1746853841118,-502.63684409,0.00010673,2]
[360534432,1746853841127,-500.0,0.00010673,2]
[360534434,1746853841136,-500.0,0.00010673,2]
[360534436,1746853841145,-502.05292115,0.00010673,2]
[360534438,1746853841157,-500.7271994,0.00010673,2]
[360534439,1746853841167,-500.0,0.00010673,2]
[360534440,1746853841273,-500.0,0.00010673,2]
[360534441,1746853841283,-500.0,0.00010673,2]
[360534442,1746853841292,-500.0,0.00010673,2]
[360534443,1746853841301,-914270.52702645,0.00010689,2]
[360534534,1746853843544,-350770.05466296,0.00010689,2]
[360534558,1746853928964,-254.94278424,8.12e-05,2]
[360534559,1746853937719,-373.84423185,8.12e-05,2]
[360534560,1746853953462,-196.92927326,8.12e-05,2]
[360534563,1746853967620,-174.28371065,8.12e-05,2]
[360534564,1746854001615,-176.51763205,8.12e-05,2]
[360534565,1746854013912,-418.73536061,8.12e-05,2]
[360534566,1746854028383,-404.74700734,8.12e-05,2]
[360534567,1746854097151,-275.83541423,8.218e-05,2]
[360534568,1746854102808,-331.74574511,8.218e-05,2]
[360534673,1746855032671,-392.41884066,8.218e-05,2]
[360534675,1746855032680,-375.40541202,8.31e-05,2]
[360534677,1746855032690,-200.83923707,8.31e-05,2]
[360534679,1746855032699,-381.35887051,8.31e-05,2]
[360534681,1746855032709,-1200.0,8.675e-05,2]
[360534683,1746855032718,-300.0,8.676e-05,2]
[360534685,1746855032727,-300.0,8.676e-05,2]
[360534687,1746855032736,-300.0,8.676e-05,2]
[360534689,1746855032745,-300.0,8.676e-05,2]
[360534691,1746855032754,-300.0,8.676e-05,2]
[360534693,1746855032763,-15552.5275891,8.677e-05,2]
[360534695,1746855032772,-420.0,9.544e-05,2]
[360534697,1746855032781,-151.63523759,9.672e-05,2]
[360534699,1746855032790,-228.9124293,9.674e-05,2]
[360534700,1746855032799,-500.0,9.674e-05,2]
[360534702,1746855032810,-319.08035849,9.674e-05,2]
[360534784,1746855038988,-180.91964151,9.674e-05,2]
[360534786,1746855038997,-134.69019231,9.674e-05,2]
[360535058,1746855041815,-358.08062865,9.674e-05,2]
[360535060,1746855041825,-15781.88169285,9.675e-05,2]
[360535062,1746855041834,-587.0,0.00010498,2]
[360535064,1746855041844,-1200.0,0.00010568,2]
[360535066,1746855041853,-154.71656139,0.000106,2]
[360535068,1746855041863,-561.7058299,0.00010635,2]
[360535070,1746855041874,-842.34118046,0.00010669,2]
[360535072,1746855041883,-160.0,0.00010669,2]
[360535074,1746855041893,-160.0,0.00010669,2]
[360535076,1746855041902,-212.13671436,0.00010669,2]
[360535078,1746855041911,-12619.28597579,0.00010669,2]
[360535080,1746855041922,-160.0,0.00010669,2]
[360535082,1746855041931,-160.0,0.00010669,2]
[360535084,1746855041941,-160.0,0.00010669,2]
[360535086,1746855041951,-311.7026645,0.00010673,2]
[360535088,1746855041961,-500.0,0.00010673,2]
[360535090,1746855041971,-506.78125742,0.00010673,2]
[360535092,1746855041981,-500.0,0.00010673,2]
[360535094,1746855041991,-500.0,0.00010673,2]
[360535096,1746855042000,-500.0,0.00010673,2]
[360535107,1746855042103,-500.0,0.00010673,2]
[360535109,1746855042114,-500.0,0.00010673,2]
[360535111,1746855042124,-500.0,0.00010673,2]
[360535113,1746855042136,-500.0,0.00010673,2]
[360535115,1746855042146,-506.46803802,0.00010673,2]
[360535117,1746855042156,-83437.96397817,0.00010689,2]
[360535282,1746855060947,-176.60891715,8.118e-05,2]
[360535283,1746855065957,-152.92905861,8.118e-05,2]
[360535284,1746855077693,-153.95982647,8.118e-05,2]
[360535285,1746855092728,-233.25034662,8.118e-05,2]
[360535287,1746855108381,-66.86327371,8.118e-05,2]
[360535365,1746856246849,-300.0,8.296e-05,2]
[360535366,1746856246859,-300.0,8.297e-05,2]
[360535367,1746856246868,-300.0,8.297e-05,2]
[360535368,1746856246878,-300.0,8.297e-05,2]
[360535369,1746856246887,-300.0,8.297e-05,2]
[360535370,1746856246897,-691.06337999,8.297e-05,2]
[360535371,1746856246909,-508.93662001,8.297e-05,2]
[360535372,1746856246918,-500.0,8.298e-05,2]
[360535373,1746856246928,-500.0,8.298e-05,2]
[360535374,1746856246937,-500.0,8.298e-05,2]
[360535375,1746856246947,-525.41336801,8.298e-05,2]
[360535376,1746856246956,-500.0,8.298e-05,2]
[360535377,1746856246966,-500.0,8.298e-05,2]
[360535378,1746856246975,-500.0,8.298e-05,2]
[360535379,1746856246984,-200.0,8.298e-05,2]
[360535380,1746856246993,-500.0,8.298e-05,2]
[360535381,1746856247003,-500.0,8.298e-05,2]
[360535382,1746856247013,-500.0,8.298e-05,2]
[360535383,1746856247023,-500.0,8.298e-05,2]
[360535384,1746856247033,-500.0,8.298e-05,2]
[360535385,1746856247043,-500.0,8.298e-05,2]
[360535386,1746856247053,-500.0,8.298e-05,2]
[360535387,1746856247063,-500.0,8.298e-05,2]
[360535388,1746856247072,-500.0,8.298e-05,2]
[360535389,1746856247083,-500.0,8.298e-05,2]
[360535390,1746856247092,-500.0,8.298e-05,2]
[360535391,1746856247102,-437.39191659,8.298e-05,2]
[360535392,1746856247112,-500.0,8.298e-05,2]
[360535393,1746856247122,-335.00181674,8.298e-05,2]
[360535394,1746856247132,-500.0,8.298e-05,2]
[360535395,1746856247142,-613.26552695,8.298e-05,2]
[360535396,1746856247152,-2591.99231807,8.299e-05,2]
[360535397,1746856247162,-297.26364542,8.309e-05,2]
[360535398,1746856247172,-607.1602407,9.467e-05,2]
[360535399,1746856247181,-151.0,9.994e-05,2]
[360535400,1746856247192,-5531.16628004,0.0001,2]
[360535401,1746856247202,-5531.16627977,0.0001,2]
[360535402,1746856247211,-5531.16627977,0.0001,2]
[360535403,1746856247220,-5531.16627977,0.0001,2]
[360535404,1746856247230,-5531.16627977,0.0001,2]
[360535405,1746856247239,-5531.16627977,0.0001,2]
[360535406,1746856247249,-5531.16627977,0.0001,2]
[360535407,1746856247259,-5531.16627977,0.0001,2]
[360535408,1746856247268,-5531.16627977,0.00010121,2]
[360535409,1746856247277,-225.07404805,0.00010131,2]
[360535410,1746856247287,-160.0,0.00010174,2]
[360535411,1746856247300,-212.13671436,0.00010174,2]
[360535412,1746856247309,-12619.28597579,0.00010174,2]
[360535413,1746856247319,-160.0,0.00010174,2]
[360535414,1746856247329,-160.0,0.00010174,2]
[360535415,1746856247338,-152.0,0.00010181,2]
[360535416,1746856247348,-505.15078347,0.00010348,2]
[360535417,1746856247358,-5531.16627977,0.00010348,2]
[360535418,1746856247370,-229.95094889,0.00010494,2]
[360535419,1746856247384,-229.95094887,0.00010519,2]
[360535420,1746856247394,-229.95094887,0.00010544,2]
[360535421,1746856247403,-1100.0,0.00010568,2]
[360535422,1746856247413,-229.95094887,0.00010569,2]
[360535423,1746856247423,-5531.16627977,0.00010576,2]
[360535424,1746856247433,-160.4,0.00010594,2]
[360535425,1746856247445,-160.4,0.00010594,2]
[360535426,1746856247455,-160.4,0.00010594,2]
[360535427,1746856247465,-160.4,0.00010594,2]
[360535428,1746856247475,-160.4,0.00010594,2]
[360535429,1746856247485,-160.4,0.00010594,2]
[360535430,1746856247494,-160.4,0.00010594,2]
[360535431,1746856247504,-229.95094887,0.00010594,2]
[360535432,1746856247515,-449.3646639,0.00010635,2]
[360535433,1746856247525,-77366.0,0.0001065,2]
[360535434,1746856247535,-422.13686889,0.00010666,2]
[360535435,1746856247546,-842.34118046,0.00010669,2]
[360535436,1746856247559,-160.0,0.00010669,2]
[360535437,1746856247571,-519.67318067,0.00010673,2]
[360535438,1746856247582,-500.0,0.00010673,2]
[360535439,1746856247591,-500.0,0.00010673,2]
[360535440,1746856247604,-500.0,0.00010673,2]
[360535441,1746856247616,-500.0,0.00010673,2]
[360535442,1746856247626,-505.6815575,0.00010673,2]
[360535443,1746856247639,-500.0,0.00010673,2]
[360535444,1746856247650,-500.0,0.00010673,2]
[360535445,1746856247660,-500.0,0.00010673,2]
[360535446,1746856247669,-219.58860285,0.00010673,2]
[360535447,1746856247678,-500.0,0.00010673,2]
[360535448,1746856247688,-591.63772929,0.00010673,2]
[360535449,1746856247699,-502.87091991,0.00010673,2]
[360535450,1746856247708,-500.0,0.00010673,2]
[360535451,1746856247717,-500.0,0.00010673,2]
[360535452,1746856247726,-500.0,0.00010673,2]
[360535453,1746856247736,-500.0,0.00010673,2]
[360535454,1746856247745,-500.0,0.00010673,2]
[360535455,1746856247754,-501.49922648,0.00010673,2]
[360535456,1746856247763,-500.0,0.00010673,2]
[360535457,1746856247772,-500.0,0.00010673,2]
[360535458,1746856247781,-500.0,0.00010673,2]
[360535459,1746856247792,-500.0,0.00010673,2]
[360535460,1746856247802,-500.0,0.00010673,2]
[360535461,1746856247812,-134790.39196872,0.00010689,2]
[360535472,1746856959256,-215.14883287,8.191e-05,2]
[360535474,1746856967655,-181.41652582,8.191e-05,2]
[360535475,1746856983393,-151.0,8.191e-05,2]
[360535476,1746856997807,-62.1727688,8.191e-05,2]
[360535530,1746857432006,-500.0,8.287e-05,2]
[360535532,1746857432017,-515.26576851,8.287e-05,2]
[360535534,1746857432027,-716.7481489,9.92e-05,2]
[360535536,1746857432037,-184.0,0.0001,2]
[360535538,1746857432046,-1200.0,0.00010166,2]
[360535540,1746857432055,-300.0,0.00010166,2]
[360535542,1746857432065,-300.0,0.00010167,2]
[360535544,1746857432076,-300.0,0.00010167,2]
[360535546,1746857432085,-300.0,0.00010167,2]
[360535547,1746857432095,-449.11863201,0.00010167,2]
[360535548,1746857432104,-500.0,0.00010167,2]
[360535549,1746857432114,-198.59857692,0.00010167,2]
[360535550,1746857432123,-356.6972154,0.00010167,2]
[360535551,1746857432132,-160.0,0.00010171,2]
[360535552,1746857432142,-842.34118046,0.00010171,2]
[360535553,1746857432151,-160.0,0.00010171,2]
[360535555,1746857432160,-422.13686889,0.00010171,2]
[360535557,1746857432169,-1100.0,0.00010568,2]
[360535559,1746857432178,-151.0,0.00010586,2]
[360535560,1746857432187,-160.0,0.00010591,2]
[360535561,1746857432197,-160.0,0.00010591,2]
[360535562,1746857432206,-160.0,0.00010591,2]
[360535563,1746857432215,-12619.28597579,0.00010591,2]
[360535564,1746857432224,-212.13671436,0.00010591,2]
[360535565,1746857432233,-204.30461434,0.00010594,2]
[360535566,1746857432243,-2165.03246529,0.00010594,2]
[360535567,1746857432252,-359.4917311,0.00010635,2]
[360535568,1746857432262,-500.0,0.00010673,2]
[360535570,1746857432271,-500.0,0.00010673,2]
[360535572,1746857432281,-408.36227071,0.00010673,2]
[360535574,1746857432290,-500.0,0.00010673,2]
[360535575,1746857432299,-500.0,0.00010673,2]
[360535576,1746857432308,-505.01105645,0.00010673,2]
[360535578,1746857432317,-500.0,0.00010673,2]
[360535579,1746857432328,-500.0,0.00010673,2]
[360535580,1746857432337,-500.0,0.00010673,2]
[360535581,1746857432347,-500.0,0.00010673,2]
[360535582,1746857432357,-500.0,0.00010673,2]
[360535583,1746857432366,-502.64105797,0.00010673,2]
[360535584,1746857432376,-507.69984036,0.00010673,2]
[360535585,1746857432386,-500.0,0.00010673,2]
[360535586,1746857432395,-500.94396832,0.00010673,2]
[360535587,1746857432404,-506.16891053,0.00010673,2]
[360535588,1746857432414,-500.0,0.00010673,2]
[360535589,1746857432423,-503.47629839,0.00010673,2]
[360535590,1746857432432,-39839.11405163,0.00010689,2]
[360535591,1746857432445,-505.69025847,0.00010689,2]
[360535607,1746857440567,-527.69100549,0.00010689,2]
[360535608,1746857440626,-9886.6,0.00010689,2]
[360535769,1746857446007,-599.68805078,0.00010166,2]
[360535771,1746857446017,-314.3830424,0.00010166,2]
[360535773,1746857446027,-3992.23602562,0.00010689,2]
[360535831,1746857733640,-200.27442703,8.185e-05,2]
[360535832,1746857747546,2139.0,0.0001,14]
[360535836,1746858008243,2000.0,0.000155,30]
[360535837,1746858052602,6577.16818178,0.000155,30]
[360535840,1746858382958,500.0,0.000155,30]
[360535848,1746858524251,905.98552492,0.00014,30]
[360535945,1746858632585,-300.0,8.272e-05,2]
[360535946,1746858632596,-300.0,8.273e-05,2]
[360535947,1746858632606,-300.0,8.273e-05,2]
[360535948,1746858632615,-300.0,8.273e-05,2]
[360535949,1746858632624,-13.08749644,8.273e-05,2]
[360535950,1746858632638,-286.91250356,8.273e-05,2]
[360535951,1746858632647,-1200.0,8.273e-05,2]
[360535952,1746858632657,-283.44599133,8.274e-05,2]
[360535953,1746858632666,-500.0,8.274e-05,2]
[360535954,1746858632675,-500.0,8.274e-05,2]
[360535955,1746858632684,-500.0,8.274e-05,2]
[360535956,1746858632693,-500.0,8.274e-05,2]
[360535957,1746858632703,-500.0,8.274e-05,2]
[360535958,1746858632713,-500.0,8.274e-05,2]
[360535959,1746858632722,-500.0,8.274e-05,2]
[360535960,1746858632731,-500.0,8.274e-05,2]
[360535961,1746858632740,-529.67393541,8.274e-05,2]
[360535962,1746858632750,-500.0,8.274e-05,2]
[360535963,1746858632759,-627.98237834,8.274e-05,2]
[360535964,1746858632768,-500.0,8.274e-05,2]
[360535965,1746858632777,-257.89099976,8.274e-05,2]
[360535966,1746858632786,-10207.46386385,8.275e-05,2]
[360535967,1746858632795,-387.0,9.099e-05,2]
[360535968,1746858632804,-420.0,9.1e-05,2]
[360535969,1746858632814,-1200.0,9.1e-05,2]
[360535970,1746858632823,-463.4286324,9.474e-05,2]
[360535971,1746858632832,-3761.7467894,0.0001,2]
[360535972,1746858632841,-3761.74678923,0.0001,2]
[360535973,1746858632850,-3761.74678923,0.0001,2]
[360535974,1746858632859,-3761.74678923,0.0001,2]
[360535975,1746858632868,-2257.24266497,0.00010038,2]
[360535976,1746858632880,-1504.50412426,0.00010038,2]
[360535977,1746858632890,-1000.0,0.00010066,2]
[360535978,1746858632899,-207.4,0.00010154,2]
[360535979,1746858632908,-160.0,0.00010172,2]
[360535980,1746858632917,-160.0,0.00010172,2]
[360535981,1746858632927,-212.13671436,0.00010172,2]
[360535982,1746858632937,-3018.91098065,0.00010172,2]
[360535983,1746858632948,-9600.37499514,0.00010172,2]
[360535984,1746858632958,-3761.74678923,0.00010272,2]
[360535985,1746858632969,-216.79066203,0.00010311,2]
[360535986,1746858632978,-771.45,0.0001038,2]
[360535987,1746858632987,-160.6407476,0.00010411,2]
[360535988,1746858632996,-3761.74678923,0.00010507,2]
[360535989,1746858633006,-2241.0,0.00010533,2]
[360535990,1746858633015,-404.0,0.00010533,2]
[360535991,1746858633024,-1000.0,0.00010568,2]
[360535992,1746858633034,-287.5933849,0.00010635,2]
[360535993,1746858633043,-500.0,0.00010673,2]
[360535994,1746858633052,-500.0,0.00010673,2]
[360535995,1746858633061,-500.0,0.00010673,2]
[360535996,1746858633071,-500.0,0.00010673,2]
[360535997,1746858633081,-500.0,0.00010673,2]
[360535998,1746858633090,-500.0,0.00010673,2]
[360535999,1746858633100,-512.35885925,0.00010673,2]
[360536000,1746858633110,-500.0,0.00010673,2]
[360536001,1746858633120,-500.0,0.00010673,2]
[360536002,1746858633130,-842.34118046,0.00010686,2]
[360536003,1746858633141,-160.0,0.00010686,2]
[360536004,1746858633151,-422.13686889,0.00010686,2]
[360536005,1746858633161,-160.0,0.00010686,2]
[360536006,1746858633170,-47289.48308184,0.00010689,2]
[360536028,1746858638168,-2534.1571635,0.00010689,2]
[360536029,1746858638181,-21352.52090274,0.00010689,2]
[360536504,1746858758480,-196.84766602,8.173e-05,2]
[360536506,1746858767781,-405.5419456,8.173e-05,2]
[360536507,1746858783802,-177.90104503,8.173e-05,2]
[360536509,1746858797739,-211.33230852,8.173e-05,2]
[360536511,1746858813431,-8.37703483,8.173e-05,2]
[360536515,1746858964645,3216.50955113,0.00015,120]
[360536520,1746859242532,2982.49768265,0.000155,30]
[360536626,1746859838366,-276.24513985,8.898e-05,2]
[360536627,1746859838376,-632.9361819,9.451e-05,2]
[360536628,1746859838386,-500.0,9.996e-05,2]
[360536629,1746859838395,-244.77559496,9.996e-05,2]
[360536630,1746859838405,-484.8656201,9.996e-05,2]
[360536631,1746859838415,-1200.0,9.997e-05,2]
[360536633,1746859838424,-300.0,9.999e-05,2]
[360536635,1746859838434,-1044.52,0.0001,2]
[360536636,1746859838444,-422.13686889,0.00010167,2]
[360536637,1746859838454,-842.34118046,0.00010167,2]
[360536638,1746859838465,-160.0,0.00010167,2]
[360536639,1746859838474,-160.0,0.00010167,2]
[360536640,1746859838483,-234.699,0.00010533,2]
[360536641,1746859838493,-404.0,0.00010533,2]
[360536642,1746859838502,-787.92766058,0.00010565,2]
[360536643,1746859838512,-900.0,0.00010568,2]
[360536644,1746859838521,-2258.07435795,0.00010594,2]
[360536645,1746859838531,-308.3360964,0.000106,2]
[360536646,1746859838540,-230.0747079,0.00010635,2]
[360536648,1746859838551,-160.0,0.00010669,2]
[360536650,1746859838560,-160.0,0.00010669,2]
[360536652,1746859838570,-160.0,0.00010669,2]
[360536653,1746859838579,-212.13671436,0.00010669,2]
[360536654,1746859838588,-12619.28597579,0.00010669,2]
[360536655,1746859838597,-500.0,0.00010673,2]
[360536656,1746859838606,-506.29368682,0.00010673,2]
[360536657,1746859838616,-500.0,0.00010673,2]
[360536658,1746859838625,-500.0,0.00010673,2]
[360536659,1746859838634,-500.0,0.00010673,2]
[360536660,1746859838644,-500.0,0.00010673,2]
[360536662,1746859838653,-500.0,0.00010673,2]
[360536663,1746859838663,-500.0,0.00010673,2]
[360536664,1746859838675,-23212.63797791,0.00010689,2]
[360536665,1746859838687,-569.45124166,0.00010689,2]
[360536666,1746859838702,-851.02316454,0.00010689,2]
[360536731,1746859846534,-250.87677775,8.99e-05,2]
[360536733,1746859846544,-604.03013195,8.99e-05,2]
[360536735,1746859846553,-225.51932616,8.99e-05,2]
[360536737,1746859846563,-161.90934339,8.99e-05,2]
[360536739,1746859846572,-1289.50348851,0.00010689,2]
[360536753,1746860344363,-213.5142267,8.066e-05,2]
[360536755,1746860357672,-172.42093506,8.066e-05,2]
[360536757,1746860373215,-114.06483824,8.066e-05,2]
[360536758,1746860373238,-313.5142267,8.066e-05,2]
[360536759,1746860387738,-300.0,8.066e-05,2]
[360536761,1746860398067,-10.8486733,8.066e-05,2]
[360537225,1746860712315,-300.0,8.461e-05,2]
[360537226,1746860712337,-300.0,8.461e-05,2]
[360537227,1746860712359,-300.0,8.461e-05,2]
[360537228,1746860712381,-500.0,8.462e-05,2]
[360537229,1746860712403,-634.04668375,8.462e-05,2]
[360537230,1746860712424,-500.0,8.462e-05,2]
[360537231,1746860712447,-319.69275883,8.462e-05,2]
[360537232,1746860712470,-500.0,8.462e-05,2]
[360537233,1746860712491,-373.42931777,8.462e-05,2]
[360537234,1746860712513,-500.0,8.462e-05,2]
[360537235,1746860712536,-500.0,8.462e-05,2]
[360537236,1746860712559,-500.0,8.462e-05,2]
[360537237,1746860712582,-580.47391311,8.462e-05,2]
[360537238,1746860712607,-500.0,8.462e-05,2]
[360537239,1746860712631,-500.0,8.462e-05,2]
[360537240,1746860712656,-500.0,8.462e-05,2]
[360537241,1746860712680,-386.03310054,8.462e-05,2]
[360537242,1746860712704,-500.0,8.462e-05,2]
[360537243,1746860712728,-500.0,8.462e-05,2]
[360537244,1746860712752,-500.0,8.462e-05,2]
[360537245,1746860712774,-500.0,8.462e-05,2]
[360537246,1746860712796,-500.0,8.462e-05,2]
[360537247,1746860712819,-500.0,8.462e-05,2]
[360537248,1746860712841,-500.0,8.462e-05,2]
[360537249,1746860712864,-500.0,8.462e-05,2]
[360537250,1746860712886,-500.0,8.462e-05,2]
[360537251,1746860712912,-500.0,8.462e-05,2]
[360537252,1746860712936,-500.0,8.462e-05,2]
[360537253,1746860712962,-500.0,8.462e-05,2]
[360537254,1746860712985,-500.0,8.465e-05,2]
[360537255,1746860713007,-500.0,8.911e-05,2]
[360537262,1746860785283,-2000.0,0.00011,14]
[360537264,1746860804552,-160.0,0.00011912,7]
[360537265,1746860814797,-160.0,0.00012011,8]
[360537266,1746860814855,-160.0,0.00012109,9]
[360537267,1746860814887,-160.0,0.00012208,10]
[360537268,1746860814920,-160.0,0.00012307,11]
[360537269,1746860814979,-160.0,0.00012406,12]
[360537270,1746860815014,-160.0,0.00012504,13]
[360537271,1746860815069,-160.0,0.00012603,14]
[360537272,1746860815101,-160.0,0.00012702,15]
[360537273,1746860815132,-160.0,0.00012801,16]
[360537274,1746860815181,-160.0,0.00012899,17]
[360537275,1746860815213,-160.0,0.00012998,18]
[360537276,1746860822069,-160.0,0.00013097,19]
[360537277,1746860835056,-200.0,0.00016545,120]
[360537278,1746860835100,-200.0,0.00016893,120]
[360537279,1746860843409,-547.0,0.00017,30]
[360537280,1746860862505,-200.0,0.00017092,120]
[360537281,1746860862548,-200.0,0.0001821,120]
[360537282,1746860862580,-200.0,0.0001849,120]
[360537283,1746860862613,-200.0,0.00018617,120]
[360537284,1746860862644,-200.0,0.00018649,120]
[360537285,1746860862675,-200.0,0.00018793,120]
[360537286,1746860862707,-200.0,0.00019035,120]
[360537287,1746860862748,-200.0,0.00019956,120]
[360537288,1746860867545,-252.139816,0.00018,30]
[360537289,1746860867594,-701.9,0.000199,31]
[360537290,1746860867630,-701.9,0.000199,31]
[360537291,1746860867665,-701.9,0.000199,31]
[360537292,1746860867700,-701.9,0.000199,31]
[360537293,1746860867736,-701.9,0.000199,31]
[360537294,1746860867773,-701.9,0.000199,31]
[360537295,1746860867808,-701.9,0.000199,31]
[360537296,1746860867844,-701.9,0.000199,31]
[360537297,1746860867879,-701.9,0.000199,31]
[360537298,1746860867914,-701.9,0.000199,31]
[360537299,1746860867950,-701.9,0.000199,31]
[360537300,1746860867985,-701.9,0.000199,31]
[360537302,1746860868020,-701.9,0.000199,31]
[360537303,1746860868054,-701.9,0.000199,31]
[360537304,1746860868091,-701.9,0.000199,31]
[360537305,1746860868127,-701.9,0.000199,31]
[360537306,1746860868159,-250.0,0.0002,30]
[360537309,1746860886470,-200.0,0.00020165,120]
[360537310,1746860886502,-200.0,0.00020237,120]
[360537311,1746860886536,-200.0,0.00020908,120]
[360537312,1746860886570,-200.0,0.00021166,120]
[360537317,1746860973827,589.65,0.000199,31]
[360537318,1746860973936,589.65,0.000199,31]
[360537319,1746860974032,589.65,0.000199,31]
[360537320,1746860974113,589.65,0.000199,31]
[360537321,1746860974207,589.65,0.000199,31]
[360537322,1746860974277,589.65,0.000199,31]
[360537323,1746860974363,589.65,0.000199,31]
[360537324,1746860974449,589.65,0.000199,31]
[360537325,1746860974540,589.65,0.000199,31]
[360537326,1746860974609,589.65,0.000199,31]
[360537327,1746860974674,589.65,0.000199,31]
[360537328,1746860974896,589.65,0.000199,31]
[360537329,1746860974958,589.65,0.000199,31]
[360537330,1746860975003,589.65,0.000199,31]
[360537331,1746860975047,589.65,0.000199,31]
[360537332,1746860975089,589.65,0.000199,31]
[360537566,1746861041456,-500.0,8.821e-05,2]
[360537567,1746861041466,-443.83267862,8.821e-05,2]
[360537568,1746861041476,-423.78493119,8.821e-05,2]
[360537569,1746861041488,-300.0,8.821e-05,2]
[360537571,1746861041498,-24900.0,8.822e-05,2]
[360537572,1746861041507,-250.0,9.256e-05,2]
[360537573,1746861041517,-500.0,9.378e-05,2]
[360537574,1746861041527,-500.0,9.38e-05,2]
[360537575,1746861041536,-227.0,9.703e-05,2]
[360537576,1746861041546,-500.0,9.849e-05,2]
[360537577,1746861041556,-3045.77294988,0.0001,2]
[360537578,1746861041565,-3045.77294982,0.0001,2]
[360537579,1746861041575,-3045.77294982,0.0001,2]
[360537580,1746861041584,-883.45388278,0.0001,2]
[360537601,1746861046223,-380.75290601,0.0001,2]
[360537613,1746861046657,-1781.56616103,0.0001,2]
[360537614,1746861046667,-3045.77294982,0.00010124,2]
[360537615,1746861046676,-160.0,0.00010166,2]
[360537616,1746861046686,-422.13686889,0.00010166,2]
[360537617,1746861046695,-842.34118046,0.00010166,2]
[360537618,1746861046705,-160.0,0.00010166,2]
[360537619,1746861046715,-160.0,0.00010166,2]
[360537620,1746861046724,-160.0,0.00010166,2]
[360537621,1746861046734,-212.13671436,0.00010166,2]
[360537622,1746861046743,-12316.34067089,0.00010166,2]
[360537623,1746861046755,-302.9453049,0.00010166,2]
[360537624,1746861046764,-151.0,0.00010167,2]
[360537625,1746861046773,-167.6401748,0.00010167,2]
[360537626,1746861047055,-225.0309092,0.00010167,2]
[360537627,1746861047065,-392.671084,0.00010167,2]
[360537628,1746861047075,-166.299791,0.00010167,2]
[360537629,1746861047085,-500.0,0.00010341,2]
[360537630,1746861047094,-3045.77294982,0.00010355,2]
[360537631,1746861047103,-3045.77294982,0.00010586,2]
[360537632,1746861047113,-2000.0,0.000106,2]
[360537633,1746861047123,-184.0597663,0.00010635,2]
[360537634,1746861047133,-500.0,0.00010673,2]
[360537635,1746861047143,-500.0,0.00010673,2]
[360537636,1746861047153,-500.0,0.00010673,2]
[360537637,1746861047162,-500.0,0.00010673,2]
[360537638,1746861047172,-477.86988302,0.00010673,2]
[360537639,1746861047182,-500.0,0.00010673,2]
[360537640,1746861047192,-500.0,0.00010673,2]
[360537641,1746861047201,-500.0,0.00010673,2]
[360537642,1746861047211,-151.0,0.00010689,2]
[360537643,1746861047220,-151.0,0.00010689,2]
[360537644,1746861047230,-151.0,0.00010689,2]
[360537645,1746861047241,-151.0,0.00010689,2]
[360537646,1746861047253,-151.0,0.00010689,2]
[360537647,1746861047263,-151.0,0.00010689,2]
[360537648,1746861047273,-151.0,0.00010689,2]
[360537649,1746861047284,-151.0,0.00010689,2]
[360537650,1746861047294,-151.0,0.00010689,2]
[360537651,1746861047304,-152.44333,0.00010689,2]
[360537652,1746861047315,-151.0,0.00010689,2]
[360537653,1746861047324,-151.0,0.00010689,2]